[Event "30th NATO Chess-ch 2019"]
[Site "Berlin"]
[Date "2019.09.20"]
[Round "7.11"]
[White "Werksma, Arie"]
[Black "Oltean, Gusztav"]
[Result "1-0"]
[ECO "B12"]
[WhiteElo "2197"]
[BlackElo "2053"]
[Annotator "NA"]
[PlyCount "153"]
[EventDate "2019.09.16"]
[EventType "swiss"]
[EventCountry "GER"]
[SourceTitle "playchess.com"]
[Source "ChessBase"]
[SourceQuality "1"]
[TimeControl "40/7200:1800"]

1. e4 {[%emt 2:00:00]} c6 {[%emt 1:59:52]} 2. d4 {[%emt 1:59:28]} d5 {[%emt 1:59:32]} 3. e5 {[%emt 1:59:32]} Bf5 {[%emt 1:59:06]} 4. c4 {[%emt 1:58:54]} e6 {[%emt 1:58:37]} 5. Nc3 {[%emt 1:58:37]} dxc4 {[%emt 1:57:51]} 6. Bxc4 {[%emt 1:57:51]} Nd7 {[%emt 1:57:44]} 7. Nge2 {[%emt 1:57:44]} Nb6 {[%emt 1:57:36]} 8. Bb3 {[%emt 1:55:20]} Ne7 {[%emt 1:55:20]} 9. Ng3 {[%emt 1:45:15]} Bg6 {[%emt 1:45:15]} 10. O-O {[%emt 1:37:22]} Qd7 {[%emt 1:37:22]} 11. h4 {[%emt 1:27:59]} h6 {[%emt 1:27:59]} 12. h5 {[%emt 1:27:51]} Bh7 {[%emt 1:27:51]} 13. Qg4 {[%emt 1:44:20]} O-O-O {[%emt 1:39:08]} 14. Be3 {[%emt 1:27:20]} Nbd5 {[%emt 1:38:02]} 15. Rac1 {[%emt 1:38:02]} Kb8 $11 {[%emt 1:13:46]} 16. Nge4 {[%emt 1:13:33]} Nf5 {[%emt 1:13:33]} 17. Nxd5 {[%emt 1:29:39]} exd5 {[%emt 1:08:07]} 18. Ng3 {[%emt 0:59:35]} Ka8 {[%emt 0:59:35]} 19. Nxf5 {[%emt 0:35:00]} Bxf5 {[%emt 1:15:42]} 20. Qf4 {[%emt 0:34:55]} Be7 {[%emt 0:34:55]} 21. Bc2 {[%emt 1:14:12]} Bxc2 {[%emt 1:12:28]} 22. Rxc2 {[%emt 1:12:28]} Bg5 {[%emt 1:12:15]} 23. Qg3 {[%emt 0:32:12]} Qf5 {[%emt 1:06:17]} 24. Rd2 {[%emt 0:31:56]} Rdg8 {[%emt 1:03:32]} 25. f4 {[%emt 0:26:58]} Be7 {[%emt 0:26:58]} 26. Qh3 {[%emt 1:01:36]} g6 {[%emt 0:22:39]} 27. Kh2 {[%emt 0:22:33]} Qxh5 {[%emt 0:49:37]} 28. Qxh5 {[%emt 0:49:37]} gxh5 {[%emt 0:22:27]} 29. f5 {[%emt 0:21:07]} Bg5 {[%emt 0:21:07]} 30. Re2 {[%emt 0:49:24]} Re8 {[%emt 0:21:04]} 31. Rf3 {[%emt 0:45:30]} Kb8 {[%emt 0:42:34]} 32. Bf2 {[%emt 0:13:45]} Rhg8 {[%emt 0:21:35]} 33. Rh3 {[%emt 0:12:24]} h4 {[%emt 0:12:24]} 34. Rf3 {[%emt 0:17:15]} Kc7 {[%emt 0:15:32]} 35. Kh3 {[%emt 0:15:32]} Kd7 {[%emt 0:15:17]} 36. Rb3 {[%emt 0:11:01]} Kc7 {[%emt 0:11:01]} 37. Bxh4 {[%emt 0:09:02]} Bxh4 {[%emt 0:09:02]} 38. Kxh4 {[%emt 0:08:57]} Rg5 {[%emt 0:08:57]} 39. Rf3 {[%emt 0:13:00]} Kd7 {[%emt 0:11:39]} 40. Rf4 {[%emt 0:06:04]} Ke7 {[%emt 0:08:44]} 41. g4 {[%emt 0:05:07]} Reg8 {[%emt 0:03:43]} 42. Re3 {[%emt 0:03:43]} Kd8 {[%emt 0:28:40]} 43. f6 {[%emt 0:28:40]} Kd7 {[%emt 0:19:18]} 44. e6+ {[%emt 0:23:17]} fxe6 45. f7 {[%emt 0:19:07]} Rf8 {[%emt 0:23:02]} 46. Rf6 {[%emt 0:23:02]} Rg7 {[%emt 0:23:02]} 47. Rexe6 {[%emt 0:21:41]} Rfxf7 {[%emt 0:18:54]} 48. Rxf7+ {[%emt 0:21:21]} Rxf7 {[%emt 0:21:21]} 49. Rxh6 {[%emt 0:18:49]} Rf4 {[%emt 0:21:17]} 50. Kg5 {[%emt 0:20:56]} Rxd4 {[%emt 0:20:56]} 51. Rh7+ {[%emt 0:17:01]} Kd6 {[%emt 0:16:10]} 52. Rxb7 {[%emt 0:20:42]} Rd2 {[%emt 0:16:01]} 53. Kf4 {[%emt 0:20:31]} a5 {[%emt 0:20:31]} 54. Ke3 {[%emt 0:18:22]} Rh2 {[%emt 0:14:17]} 55. Kf3 {[%emt 0:15:52]} d4 {[%emt 0:13:07]} 56. g5 {[%emt 0:13:07]} d3 {[%emt 0:11:21]} 57. Rb3 {[%emt 0:08:28]} d2 {[%emt 0:08:28]} 58. Rd3+ {[%emt 0:08:05]} Ke5 {[%emt 0:08:05]} 59. Ke3 {[%emt 0:10:52]} d1=Q {[%emt 0:09:59]} 60. Rxd1 {[%emt 0:07:00]} Rxb2 {[%emt 0:09:47]} 61. Rg1 {[%emt 0:06:27]} Rb7 {[%emt 0:06:27]} 62. Kd3 {[%emt 0:08:53]} Kd5 {[%emt 0:08:38]} 63. g6 {[%emt 0:04:31]} Rg7 {[%emt 0:04:31]} 64. Rg5+ {[%emt 0:04:29]} Kd6 {[%emt 0:08:23]} 65. Kc4 {[%emt 0:04:25]} Kc7 {[%emt 0:04:25]} 66. Kc5 {[%emt 0:04:15]} Kb7 {[%emt 0:07:31]} 67. Kd6 {[%emt 0:04:10]} Kb6 {[%emt 0:04:10]} 68. Ke6 {[%emt 0:07:27]} c5 {[%emt 0:07:15]} 69. Kf6 {[%emt 0:04:04]} Rg8 {[%emt 0:07:01]} 70. Kf7 {[%emt 0:04:01]} Rc8 {[%emt 0:04:01]} 71. g7 {[%emt 0:03:50]} Rc7+ {[%emt 0:06:17]} 72. Ke6 {[%emt 0:03:47]} Rc8 {[%emt 0:03:47]} 73. g8=Q {[%emt 0:03:43]} Rxg8 {[%emt 0:05:38]} 74. Rxg8 {[%emt 0:03:42]} Kb5 {[%emt 0:05:30]} 75. Kd5 {[%emt 0:03:41]} Ka4 {[%emt 0:03:41]} 76. Kxc5 {[%emt 0:03:36]} Ka3 {[%emt 0:05:21]} 77. Re8 1-0

[Event "30th NATO Chess-ch 2019"]
[Site "Berlin"]
[Date "2019.09.20"]
[Round "7.12"]
[White "Watters, Chase"]
[Black "Bohn, Ulrich"]
[Result "0-1"]
[ECO "A58"]
[WhiteElo "2179"]
[BlackElo "2157"]
[Annotator "ChessBase"]
[PlyCount "84"]
[EventDate "2019.09.16"]
[EventType "swiss"]
[EventCountry "GER"]
[SourceTitle "playchess.com"]
[Source "ChessBase"]
[SourceQuality "1"]
[TimeControl "40/7200:1800"]

1. d4 {[%emt 1:59:28]} Nf6 {[%emt 1:59:49]} 2. c4 {[%emt 1:55:31]} c5 {[%emt 1:59:40]} 3. d5 {[%emt 1:55:19]} b5 {[%emt 1:59:35]} 4. cxb5 {[%emt 1:54:25]} a6 {[%emt 1:59:29]} 5. Nc3 {[%emt 1:59:29]} Qa5 {[%emt 1:51:44]} 6. bxa6 {[%emt 1:51:35]} Bxa6 {[%emt 1:51:35]} 7. Bd2 {[%emt 1:51:31]} Qb6 {[%emt 1:48:22]} 8. Qb3 {[%emt 1:45:05]} Qb4 {[%emt 1:38:08]} 9. Qc2 {[%emt 1:43:15]} d6 {[%emt 1:34:33]} 10. a4 {[%emt 1:34:33]} Qb7 {[%emt 1:42:25]} 11. e4 {[%emt 1:40:03]} Bxf1 {[%emt 1:31:52]} 12. Kxf1 {[%emt 1:39:57]} g6 {[%emt 1:31:15]} 13. f3 {[%emt 1:32:20]} Bg7 {[%emt 1:30:05]} 14. g4 {[%emt 1:30:05]} O-O {[%emt 1:32:13]} 15. Nge2 {[%emt 1:31:45]} Nbd7 {[%emt 1:31:45]} 16. Kg2 {[%emt 1:17:10]} Rab8 {[%emt 1:03:54]} 17. Rab1 {[%emt 1:10:02]} e6 {[%emt 0:50:02]} 18. g5 {[%emt 1:09:15]} Nh5 {[%emt 0:46:34]} 19. Ng3 {[%emt 1:08:13]} Nxg3 {[%emt 0:38:57]} 20. hxg3 {[%emt 0:38:57]} Qb3 {[%emt 0:38:42]} 21. Qc1 {[%emt 1:00:00]} Ne5 {[%emt 0:35:49]} 22. Bf4 {[%emt 0:51:19]} Rb6 {[%emt 0:13:43]} 23. Qd1 {[%emt 0:49:25]} Ra8 {[%emt 0:10:26]} 24. dxe6 {[%emt 0:46:55]} fxe6 {[%emt 0:10:12]} 25. Nb5 {[%emt 0:42:37]} Qa2 {[%emt 0:08:55]} 26. Nc3 {[%emt 0:36:17]} Rxb2+ {[%emt 0:36:17]} 27. Rxb2 {[%emt 0:34:36]} Qxb2+ {[%emt 0:07:37]} 28. Qd2 {[%emt 0:34:30]} Qxd2+ {[%emt 0:06:57]} 29. Bxd2 {[%emt 0:06:57]} Nc4 {[%emt 0:06:47]} 30. Be1 {[%emt 0:06:47]} Bd4 {[%emt 0:34:06]} 31. Kh3 {[%emt 0:33:14]} Nb2 {[%emt 0:33:14]} 32. Rh2 {[%emt 0:31:36]} Nd3 {[%emt 0:02:47]} 33. Bd2 {[%emt 0:31:12]} Nf2+ {[%emt 0:01:51]} 34. Kg2 {[%emt 0:01:51]} Bxc3 35. Kxf2 {[%emt 0:01:48]} Bxd2 {[%emt 0:01:46]} 36. f4 {[%emt 0:01:43]} Rxa4 {[%emt 0:01:43]} 37. Kf3 {[%emt 0:30:10]} Ra3+ {[%emt 0:01:38]} 38. Kg4 {[%emt 0:30:08]} Be1 {[%emt 0:01:37]} 39. Rh3 c4 {[%emt 0:29:57]} 40. f5 {[%emt 0:29:53]} exf5+ {[%emt 0:01:31]} 41. exf5 {[%emt 0:29:52]} Rxg3+ {[%emt 0:01:29]} 42. Rxg3 {[%emt 0:01:29]} Bxg3 {[%emt 0:01:28]} 0-1

[Event "30th NATO Chess-ch 2019"]
[Site "Berlin"]
[Date "2019.09.20"]
[Round "7.13"]
[White "Oblak, Nicholas"]
[Black "Pavlidou, Ekaterini"]
[Result "0-1"]
[ECO "B59"]
[WhiteElo "2048"]
[BlackElo "2178"]
[Annotator "ChessBase"]
[PlyCount "78"]
[EventDate "2019.09.16"]
[EventType "swiss"]
[EventCountry "GER"]
[SourceTitle "playchess.com"]
[Source "ChessBase"]
[SourceQuality "1"]
[TimeControl "40/7200:1800"]

1. e4 {[%emt 1:59:57]} c5 {[%emt 1:59:32]} 2. Nf3 {[%emt 1:59:32]} Nc6 {[%emt 1:58:57]} 3. d4 {[%emt 1:59:50]} cxd4 {[%emt 1:58:45]} 4. Nxd4 {[%emt 1:59:48]} e5 {[%emt 1:59:48]} 5. Nb3 {[%emt 1:57:20]} d6 {[%emt 1:56:23]} 6. Nc3 {[%emt 1:56:55]} Be6 {[%emt 1:52:40]} 7. Be3 {[%emt 1:52:40]} Nf6 {[%emt 1:56:23]} 8. Be2 {[%emt 1:51:18]} Be7 {[%emt 1:56:19]} 9. O-O {[%emt 1:50:38]} O-O {[%emt 1:52:34]} 10. f3 {[%emt 1:48:43]} Rc8 {[%emt 1:48:43]} 11. Qd2 {[%emt 1:45:41]} a6 {[%emt 1:45:41]} 12. Rad1 {[%emt 1:27:32]} Qc7 {[%emt 1:23:20]} 13. Nd5 {[%emt 1:30:10]} Bxd5 {[%emt 1:30:10]} 14. exd5 {[%emt 1:30:06]} Nb8 {[%emt 1:30:06]} 15. c4 {[%emt 1:22:25]} b6 {[%emt 1:16:53]} 16. Rc1 {[%emt 1:16:31]} Nfd7 {[%emt 1:16:31]} 17. Bd3 {[%emt 1:09:56]} a5 {[%emt 1:04:04]} 18. Qc2 {[%emt 1:06:47]} g6 {[%emt 1:01:14]} 19. Qf2 {[%emt 0:56:44]} f5 {[%emt 0:57:52]} 20. Bh6 {[%emt 0:54:08]} Rf7 {[%emt 0:57:13]} 21. h4 {[%emt 0:57:13]} Bf8 {[%emt 0:54:31]} 22. Bg5 {[%emt 0:36:24]} a4 {[%emt 0:50:48]} 23. Na1 {[%emt 0:50:48]} Bg7 {[%emt 0:30:23]} 24. b4 {[%emt 0:26:01]} axb3 {[%emt 0:34:57]} 25. axb3 {[%emt 0:21:34]} Rcf8 {[%emt 0:32:11]} 26. Qe2 {[%emt 0:16:36]} e4 {[%emt 0:28:42]} 27. fxe4 {[%emt 0:28:42]} f4 {[%emt 0:08:16]} 28. h5 {[%emt 0:05:59]} gxh5 {[%emt 0:25:46]} 29. Nc2 {[%emt 0:04:31]} Ne5 {[%emt 0:25:01]} 30. Ne1 {[%emt 0:25:01]} Ng4 {[%emt 0:21:41]} 31. Nf3 {[%emt 0:21:41]} Nd7 {[%emt 0:01:44]} 32. b4 {[%emt 0:01:21]} Be5 {[%emt 0:17:21]} 33. Bb1 {[%emt 0:01:04]} Rg7 {[%emt 0:01:04]} 34. Bh4 {[%emt 0:13:22]} Ne3 {[%emt 0:12:41]} 35. Rf2 {[%emt 0:00:53]} Z0 {[%emt 0:00:25]} 36. Ba2 {[%emt 0:00:25] Rfg8 0:05:31 Rg1 0:05:31} Rg4 {[%emt 0:05:31]} 37. Kh2 {[%emt 0:00:16]} Rxh4+ {[%emt 0:05:03]} 38. Nxh4 {[%emt 0:00:10]} f3+ {[%emt 0:04:45]} 39. g3 {[%emt 0:29:57]} fxe2 {[%emt 0:34:09]} 0-1

[Event "30th NATO Chess-ch 2019"]
[Site "Berlin"]
[Date "2019.09.20"]
[Round "7.14"]
[White "Kedzierski, Slawomir"]
[Black "Hof - Van Run, Rieke"]
[Result "1-0"]
[ECO "D64"]
[WhiteElo "2163"]
[BlackElo "2076"]
[Annotator "NA"]
[PlyCount "129"]
[EventDate "2019.09.16"]
[EventType "swiss"]
[EventCountry "GER"]
[SourceTitle "playchess.com"]
[Source "ChessBase"]
[SourceQuality "1"]
[TimeControl "40/7200:1800"]

1. d4 {[%emt 1:59:57]} d5 {[%emt 1:59:43]} 2. Nf3 {[%emt 1:59:39]} Nf6 {[%emt 1:58:35]} 3. c4 {[%emt 1:59:31]} e6 {[%emt 1:59:31]} 4. Nc3 {[%emt 1:59:10]} Be7 {[%emt 1:57:36]} 5. Bg5 {[%emt 1:58:30]} Nbd7 {[%emt 1:54:33]} 6. e3 {[%emt 1:57:58]} O-O {[%emt 1:53:39]} 7. Rc1 {[%emt 1:57:19]} c6 {[%emt 1:53:16]} 8. Qc2 {[%emt 1:55:31]} Re8 {[%emt 1:46:46]} 9. Be2 {[%emt 1:54:32] D64: Queen's Gambit Declined: Classical: 7 Rc1 c6 8 Qc2} (9. Bd3 dxc4 10. Bxc4 Nd5 11. Bxe7 Qxe7 12. Ne4 N5f6 13. O-O Nxe4 14. Qxe4 e5 15. Rfe1 h6 16. Bb3 exd4 17. Qxe7 Rxe7 18. Nxd4 Nf8 19. f3 Be6 20. Nxe6 Nxe6 21. Rcd1 Kf8 22. Kf2 Ke8 23. h4 Rd8 24. Rxd8+ Kxd8 25. a3 Rd7 26. Bxe6 {½-½ (26) Kaidanov,G (2638)-Seirawan,Y (2618) Qingdao 2002}) 9... h6 {[%emt 1:36:55]} 10. Bh4 {[%emt 1:36:55]} dxc4 {[%emt 1:28:19]} 11. Bxc4 {[%emt 1:52:25]} Nd5 {[%emt 1:52:25]} 12. Bg3 {[%emt 1:27:17]} N7b6 {[%emt 1:24:10]} 13. Bb3 {[%emt 1:46:42]} Bd6 {[%emt 1:17:13]} 14. Ne5 $146 {[%emt 1:43:22]} ({Predecessor:} 14. O-O Qe7 15. Ne4 Bxg3 16. hxg3 Nd7 17. Rfd1 N7f6 18. Nc5 {½-½ (68) Dvinskikh,L (2096)-Kaisin,Y (1887) Kirov 2014}) 14... Nb4 {[%emt 1:43:22]} 15. Qe2 {[%emt 1:40:02]} N6d5 {[%emt 0:59:12]} 16. O-O {[%emt 1:38:07]} Qe7 {[%emt 0:53:05]} 17. Ne4 {[%emt 0:53:05]} Bc7 {[%emt 0:49:35]} 18. a3 {[%emt 0:49:35]} Na6 {[%emt 1:33:34]} 19. Ba2 {[%emt 1:33:03]} Bd7 {[%emt 1:33:03]} 20. Bb1 {[%emt 1:31:03]} Rad8 $18 {[%emt 1:31:03]} (20... Red8 $16 21. Bd3 Nb8) 21. Qc2 {[%emt 0:42:29]} f5 {[%emt 0:38:11]} 22. Nd2 {[%emt 1:24:49]} Bc8 {[%emt 0:32:17]} 23. Rfe1 {[%emt 0:32:17]} Qf6 {[%emt 0:31:26]} 24. f4 {[%emt 1:18:38]} Bxe5 {[%emt 0:25:47]} 25. dxe5 {[%emt 1:18:01]} Qf7 {[%emt 0:24:29]} 26. Nc4 {[%emt 0:24:29]} Qh5 {[%emt 1:17:30]} 27. Nd6 {[%emt 1:15:31]} Re7 {[%emt 0:20:41]} 28. e4 {[%emt 0:20:41]} fxe4 {[%emt 0:11:52]} 29. Qxe4 {[%emt 1:10:35]} g5 {[%emt 1:10:35]} 30. fxg5 {[%emt 0:11:11]} hxg5 {[%emt 0:10:58]} 31. Rf1 Nac7 32. Qd4 Nb5 {[%emt 0:05:23]} 33. Qf2 {[%emt 0:59:16]} Nxd6 {[%emt 0:04:09]} 34. exd6 {[%emt 0:04:09]} Rf7 {[%emt 0:03:09]} 35. Qxa7 {[%emt 0:55:41]} Rdf8 {[%emt 0:55:41]} 36. Bd3 {[%emt 0:52:43]} Rxf1+ {[%emt 0:01:30]} 37. Rxf1 {[%emt 0:52:11]} Nf4 {[%emt 0:01:09]} 38. Qe3 {[%emt 0:01:09]} Nxd3 {[%emt 0:00:32]} 39. Qxd3 {[%emt 0:00:32]} Rxf1+ {[%emt 0:00:21]} 40. Kxf1 {[%emt 0:38:13]} Qf7+ {[%emt 0:00:13]} 41. Ke1 {[%emt 0:37:30]} Bd7 {[%emt 1:07:30]} 42. Be5 {[%emt 0:27:09]} Qf5 {[%emt 1:05:56]} 43. Qxf5 {[%emt 0:21:43]} exf5 {[%emt 1:00:50]} 44. Bf6 {[%emt 0:21:39]} g4 {[%emt 0:21:19]} 45. Bg5 {[%emt 0:59:06]} Kf7 {[%emt 0:59:06]} 46. Kd2 Ke6 47. Bf4 Kd5 48. Ke3 c5 49. h4 {[%emt 0:19:18]} gxh3 {[%emt 0:17:58]} 50. gxh3 {[%emt 0:55:32]} Ke6 {[%emt 0:16:06]} 51. Kd3 {[%emt 0:51:58]} Be8 {[%emt 0:51:58]} 52. h4 {[%emt 0:51:58]} Bb5+ {[%emt 0:13:54]} 53. Kc3 {[%emt 0:13:54]} Be2 {[%emt 0:48:41]} 54. h5 {[%emt 0:42:13]} Bxh5 {[%emt 0:10:49]} 55. Kc4 {[%emt 0:10:49]} b6 {[%emt 0:06:18]} 56. Kb5 {[%emt 0:38:50]} Be8+ {[%emt 0:06:01]} 57. Kxb6 Kd5 58. Kc7 {[%emt 0:06:01]} Ke6 {[%emt 0:05:37]} 59. b3 {[%emt 0:33:35]} Bd7 {[%emt 0:03:24]} 60. Be3 {[%emt 0:03:24]} Be8 {[%emt 0:01:54]} 61. Bxc5 {[%emt 0:32:14]} f4 {[%emt 0:01:51]} 62. a4 {[%emt 0:31:35]} f3 {[%emt 0:31:35]} 63. Bf2 {[%emt 0:30:49]} Bd7 {[%emt 0:01:29]} 64. a5 {[%emt 0:01:29]} Bb5 {[%emt 0:01:26]} 65. a6 {[%emt 0:29:48]} 1-0

[Event "30th NATO Chess-ch 2019"]
[Site "Berlin"]
[Date "2019.09.20"]
[Round "7.15"]
[White "Casteleijn, Diederick"]
[Black "Mouroutis, Konstantinos"]
[Result "1-0"]
[ECO "A11"]
[WhiteElo "2079"]
[BlackElo "2181"]
[Annotator "NA"]
[PlyCount "90"]
[EventDate "2019.09.16"]
[EventType "swiss"]
[EventCountry "GER"]
[SourceTitle "playchess.com"]
[Source "ChessBase"]
[SourceQuality "1"]
[TimeControl "40/7200:1800"]

1. Nf3 {[%emt 1:59:55]} d5 {[%emt 1:59:47]} 2. c4 {[%emt 1:59:50]} c6 {[%emt 1:59:45]} 3. e3 {[%emt 1:59:45]} Nf6 {[%emt 1:58:50]} 4. Nc3 {[%emt 1:59:33]} e6 {[%emt 1:59:33]} 5. b3 {[%emt 1:58:51]} Be7 {[%emt 1:57:17]} 6. Qc2 {[%emt 1:57:17]} Nbd7 {[%emt 1:56:49]} 7. Bb2 {[%emt 1:56:49]} O-O {[%emt 1:58:18]} 8. Rg1 {[%emt 1:58:05]} a6 {[%emt 1:42:42]} 9. g4 {[%emt 1:55:46]} b5 {[%emt 1:40:42]} 10. g5 {[%emt 1:51:57]} Ne8 {[%emt 1:40:07]} 11. h4 {[%emt 1:40:07]} Bb7 {[%emt 1:49:19]} 12. Bd3 {[%emt 1:46:17]} g6 {[%emt 1:27:02]} 13. h5 {[%emt 1:39:33]} Ng7 {[%emt 1:25:08]} 14. Nxd5 {[%emt 1:28:33]} cxd5 {[%emt 1:28:33]} 15. Qc3 {[%emt 1:25:37]} f6 {[%emt 0:59:20]} 16. hxg6 {[%emt 1:24:55]} dxc4 {[%emt 0:55:17]} 17. gxh7+ {[%emt 1:21:17]} Kh8 {[%emt 0:54:42]} 18. Nh4 {[%emt 1:07:43]} cxd3 {[%emt 0:47:51]} 19. Ng6+ {[%emt 3:55:35]} Kxh7 {[%emt 0:26:45]} 20. Qxd3 {[%emt 0:25:46]} Kg8 {[%emt 0:25:46]} 21. Nxf8 {[%emt 0:21:26]} Nxf8 {[%emt 0:21:26]} 22. gxf6 {[%emt 0:15:47]} Bxf6 {[%emt 0:23:03]} 23. Qxd8 {[%emt 0:15:42]} Rxd8 {[%emt 0:22:54]} 24. Bxf6 {[%emt 0:22:54]} Rd7 {[%emt 0:15:38]} 25. Rc1 {[%emt 0:15:23]} Be4 {[%emt 0:19:14]} 26. Rc8 {[%emt 0:19:14]} Rf7 {[%emt 0:14:53]} 27. Be5 {[%emt 0:14:00]} a5 {[%emt 0:13:41]} 28. f4 {[%emt 0:13:05]} a4 {[%emt 0:13:05]} 29. bxa4 {[%emt 0:12:54]} bxa4 {[%emt 0:12:47]} 30. a3 {[%emt 0:12:53]} Kh7 {[%emt 0:09:02]} 31. Rxf8 {[%emt 0:10:38]} Rxf8 {[%emt 0:09:01]} 32. Rxg7+ {[%emt 0:09:01]} Kh6 {[%emt 0:10:29]} 33. Re7 {[%emt 0:09:24]} Rg8 {[%emt 0:09:24]} 34. Rxe6+ {[%emt 0:09:06]} Kh5 {[%emt 0:09:06]} 35. d4 {[%emt 0:06:35]} Rg2 {[%emt 0:06:11]} 36. Re8 {[%emt 0:06:11]} Ra2 {[%emt 0:06:04]} 37. d5 {[%emt 0:03:00]} Kg4 {[%emt 0:03:00]} 38. Z0 {[%emt 0:03:00]} Bd3 {[%emt 0:03:00]} 39. Z0 {[%emt 0:02:38]} Kf3 {[%emt 0:02:38]} 40. d6 {[%emt 0:01:21]} Bf5 {[%emt 0:00:03]} 41. Re7 {[%emt 0:30:03]} Rc2 {[%emt 0:28:02]} 42. Bd4 {[%emt 0:23:13]} Rc6 {[%emt 0:26:29]} 43. Re5 {[%emt 0:21:09]} Bg4 {[%emt 0:21:09]} 44. Bc5 {[%emt 0:20:53] h4 Ba7} Bc8 45. Rh5 {Rc1+} Z0 {Kf2+} 1-0

[Event "30th NATO Chess-ch 2019"]
[Site "Berlin"]
[Date "2019.09.20"]
[Round "7.16"]
[White "Valeinis, Janis"]
[Black "Stankowski, Aleksander"]
[Result "1/2-1/2"]
[ECO "E90"]
[WhiteElo "2206"]
[BlackElo "2022"]
[Annotator "NA"]
[PlyCount "138"]
[EventDate "2019.09.16"]
[EventType "swiss"]
[EventCountry "GER"]
[SourceTitle "playchess.com"]
[Source "ChessBase"]
[SourceQuality "1"]
[TimeControl "40/7200:1800"]

1. d4 {[%emt 1:59:57]} Nf6 {[%emt 1:59:23]} 2. c4 {[%emt 1:59:23]} g6 {[%emt 1:59:06]} 3. Nc3 {[%emt 1:59:46]} Bg7 {[%emt 1:59:01]} 4. e4 {[%emt 1:59:42]} d6 {[%emt 1:58:56]} 5. Nf3 {[%emt 1:59:36]} O-O {[%emt 1:58:49]} 6. h3 {[%emt 1:59:35]} e5 {[%emt 1:58:19]} 7. d5 {[%emt 1:59:31]} Nbd7 {[%emt 1:55:23]} 8. Bg5 {[%emt 1:59:23]} h6 {[%emt 1:53:53]} 9. Be3 {[%emt 1:53:53] E90: King's Indian: Classical: Early deviations and 6 h3} b6 {[%emt 1:59:18]} (9... Nc5 10. Nd2 a5 11. g4 c6 12. a3 a4 13. Be2 Bd7 14. h4 cxd5 15. cxd5 Rc8 16. g5 hxg5 17. hxg5 Nh7 18. Rg1 f5 19. gxf6 Qxf6 {0-1 (40) Howell,D (2616)-Vachier Lagrave,M (2723) Biel 2010}) 10. Be2 {[%emt 1:58:29]} a5 {[%emt 1:58:29]} 11. Qc2 {[%emt 1:47:58]} Nc5 {[%emt 1:43:06]} 12. Nd2 {[%emt 1:54:18]} Ne8 {[%emt 1:41:12]} 13. h4 $146 {[%emt 1:53:36]} ({Predecessor:} 13. Nb3 f5 14. Nxc5 bxc5 15. f3 Nf6 16. g4 fxe4 17. fxe4 Nh7 {0-1 (59) Burgermeister,M (1865)-Zboril,J (2013) Czechia 2010}) 13... f5 {[%emt 1:39:43]} 14. h5 {[%emt 1:52:45]} g5 {[%emt 1:36:18]} 15. Bxc5 {[%emt 1:52:13]} bxc5 {[%emt 1:35:24]} 16. exf5 {[%emt 1:52:07]} Bxf5 {[%emt 1:34:39]} 17. Nde4 {[%emt 1:51:00]} Nf6 {[%emt 1:51:00]} 18. Bd3 {[%emt 1:50:32]} Nxe4 {[%emt 1:22:02]} 19. Bxe4 {[%emt 1:49:51]} Qf6 {[%emt 1:18:05]} 20. O-O-O {[%emt 1:18:05]} Rab8 {[%emt 1:33:19]} 21. Qe2 {[%emt 1:13:43]} Rb4 {[%emt 1:10:02]} 22. Rd2 {[%emt 1:10:26]} Bxe4 {[%emt 1:05:13]} 23. Nxe4 {[%emt 1:05:13]} Qf4 {[%emt 1:10:15]} 24. Kb1 {[%emt 1:01:53]} Rfb8 {[%emt 0:57:59]} 25. Rc2 {[%emt 0:57:59]} Rf8 {[%emt 0:48:37]} 26. Rh3 {[%emt 0:48:37]} a4 {[%emt 0:47:03]} 27. Rf3 {[%emt 0:34:20]} Qh4 {[%emt 0:45:56]} 28. Rxf8+ {[%emt 0:34:05]} Kxf8 {[%emt 0:45:28]} 29. g4 {[%emt 0:31:06]} Qh1+ {[%emt 0:40:45]} 30. Rc1 {[%emt 0:30:58]} Qh2 {[%emt 0:30:58]} 31. a3 {[%emt 0:29:56]} Rb3 {[%emt 0:29:56]} 32. Ka2 {[%emt 0:29:37]} Qf4 $2 {[%emt 0:34:02]} (32... Qh3 $1 $14) 33. Rc3 {[%emt 0:34:02]} Rxc3 {[%emt 0:28:19]} 34. Nxc3 {[%emt 0:28:14]} Bf6 {[%emt 0:28:14]} 35. f3 {[%emt 0:27:49]} e4 {[%emt 0:17:59]} 36. Nxe4 $18 {[%emt 0:27:14]} (36. Qxe4 $142 Qxe4 37. Nxe4) 36... Be5 {[%emt 0:16:51]} 37. Qd3 {[%emt 0:16:51]} Qc1 {[%emt 0:13:05]} 38. Nc3 {[%emt 0:20:02]} Bxc3 {[%emt 0:11:08]} 39. Qxc3 {[%emt 0:19:33]} Qf1 {[%emt 0:10:01]} 40. b3 {[%emt 0:07:27]} axb3+ {[%emt 0:03:58]} 41. Kb2 {[%emt 0:02:30]} Qe2+ {[%emt 0:02:30]} 42. Qc2 {[%emt 0:22:59]} Qxf3 {[%emt 0:30:17]} 43. a4 {[%emt 0:22:16]} Qxg4 {[%emt 0:18:01]} 44. a5 {[%emt 0:22:12]} Ke7 {[%emt 0:22:12]} 45. a6 {[%emt 0:21:39]} Qc8 {[%emt 0:11:34]} 46. Qh7+ {[%emt 0:17:56]} Ke8 {[%emt 0:17:56]} 47. Qg8+ {[%emt 0:17:43]} Kd7 {[%emt 0:17:43]} 48. Qf7+ {[%emt 0:17:01]} Kd8 {[%emt 0:09:36]} 49. Qf6+ {[%emt 0:09:36]} Ke8 {[%emt 0:15:57]} 50. Qe6+ {[%emt 0:15:44]} Kd8 {[%emt 0:08:52]} 51. Qxh6 {[%emt 0:15:35]} Qxa6 {[%emt 0:08:25]} 52. Qxg5+ {[%emt 0:15:28]} Ke8 {[%emt 0:08:04]} 53. Qe3+ {[%emt 0:08:04]} Kf7 {[%emt 0:06:58]} 54. Qf4+ {[%emt 0:06:58]} Ke7 {[%emt 0:04:42]} 55. h6 {[%emt 0:13:25]} Qa4 {[%emt 0:02:47]} 56. Kc1 {[%emt 0:02:47]} Qa1+ {[%emt 0:02:38]} 57. Kd2 {[%emt 0:05:10]} Qb2+ {[%emt 0:05:10]} 58. Kd3 {[%emt 0:02:15]} Qb1+ {[%emt 0:02:14]} 59. Ke3 {[%emt 0:04:22]} Qc1+ {[%emt 0:01:24]} 60. Kf3 {[%emt 0:04:20]} Qxf4+ {[%emt 0:01:23]} 61. Kxf4 {[%emt 0:01:23]} Kf6 {[%emt 0:04:19]} 62. h7 {[%emt 0:04:18]} Kg7 {[%emt 0:04:18]} 63. Kf5 {[%emt 0:01:22]} Kxh7 {[%emt 0:01:21]} 64. Ke6 {[%emt 0:01:21]} Kg6 {[%emt 0:01:20]} 65. Kd7 {[%emt 0:04:16]} Kf5 {[%emt 0:01:19]} 66. Kxc7 {[%emt 0:04:15]} Ke5 {[%emt 0:01:18]} 67. Kc6 {[%emt 0:04:14]} Kd4 {[%emt 0:01:17]} 68. Kxd6 {[%emt 0:04:12]} Kxc4 {[%emt 0:01:16]} 69. Ke6 {[%emt 0:04:09] Kb3 0:01:13 d6 0:04:08 c4 d7 0:01:13 c3 0:01:12 d8=Q 0:04:04 c2 0:01:10 Qb6+ 0:04:01} Kc3 {[%emt 0:01:08] Qc5+ 0:03:59 Kd2 0:01:06 Qb4+ 0:01:06 Ke2 0:00:59 Qc3 0:03:45 Kd1 0:00:56 Qd3+ 0:03:41 Kc1 0:00:55 Kd5 0:03:37 Kb2 0:00:53 Qb5+ 0:03:36 Ka1 0:00:50 Qa4+ 0:03:35 Kb2 0:00:48 Qb4+ 0:03:34 Ka1 0:00:46 Qc3+ 0:03:32 Kb1 0:00:44 Qb3+ Ka1 0:00:42 Kc6} 1/2-1/2